bitfinex-derivatives/quotes_ETHF0:USTF0_20250507
["timestamp","ask_amount","ask_price","bid_price","bid_amount"]
[1746600130881,1.91546,1830.5,1830.4,2.71312]
[1746600131387,0.8227,1830.5,1830.4,2.71312]
[1746600131982,0.8227,1830.5,1830.4,5.92092]
[1746600132184,0.8447,1830.8,1830.7,1.09264]
[1746600132377,0.8447,1830.8,1830.7,4.30044]
[1746600132777,0.8447,1830.8,1830.7,5.91084]
[1746600133284,2.5065,1830.8,1830.7,5.91084]
[1746600134581,0.8447,1830.8,1830.7,5.91084]
[1746600137081,6.774,1830.9,1830.8,1.09258]
[1746600137280,6.772,1830.9,1830.8,2.67408]
[1746600142185,2.549,1830.9,1830.8,2.67408]
[1746600148191,6.149,1830.9,1830.8,2.67408]
[1746600148794,7.24152,1830.9,1830.8,2.67408]
[1746600149092,6.149,1830.9,1830.8,2.67408]
[1746600149393,2.549,1830.9,1830.8,2.67408]
[1746600153097,3.64152,1830.9,1830.8,2.67408]
[1746600153298,1.09252,1830.9,1830.8,1.09258]
[1746600153796,8.476,1831.0,1830.7,3.2078]
[1746600153996,1.09257,1830.9,1830.8,1.09257]
[1746600154198,1.09258,1830.8,1830.7,3.2078]
[1746600154498,1.09255,1830.9,1830.8,1.09255]
[1746600154697,1.09258,1830.8,1830.7,4.3004]
[1746600155095,1.09258,1830.8,1830.7,1.0926]
[1746600156098,4.69258,1830.8,1830.7,1.0926]
[1746600156396,3.6,1830.8,1830.7,1.0926]
[1746600157095,8.89254,1830.9,1830.8,1.09258]
[1746600160898,4.69254,1830.9,1830.8,1.09258]
[1746600161099,8.88854,1830.9,1830.8,1.09258]
[1746600162092,5.28854,1830.9,1830.8,1.09258]
[1746600163098,8.88854,1830.9,1830.8,1.09258]
[1746600164700,4.69254,1830.9,1830.8,1.09258]
[1746600164900,8.88554,1830.9,1830.8,1.09258]
[1746600165394,7.793,1830.9,1830.6,5.9395]
[1746600165601,1.09259,1830.8,1830.7,1.09258]
[1746600167400,1.09264,1830.7,1830.6,3.2078]
[1746600167697,5.93939,1830.8,1830.4,3.2078]
[1746600167900,10.13239,1830.8,1830.4,3.2078]
[1746600168108,1.09276,1830.5,1830.4,4.30057]
[1746600168302,1.09276,1830.5,1830.3,7.28192946]
[1746600168303,1.09282,1830.4,1830.3,7.28192946]
[1746600168506,5.28579,1830.5,1830.3,7.28192946]
[1746600168703,5.28579,1830.5,1830.4,1.09282]
[1746600174323,8.57509,1830.5,1830.4,1.09282]
[1746600174623,11.6763,1830.5,1830.4,1.09282]
[1746600174919,12.76906,1830.5,1830.4,1.09282]
[1746600177418,8.57506,1830.5,1830.4,1.09282]
[1746600178222,7.4823,1830.5,1830.4,4.69282]
[1746600179124,7.4823,1830.5,1830.4,1.09282]
[1746600179421,8.57506,1830.5,1830.4,1.09282]
[1746600180532,1.09287,1830.4,1830.2,3.2078]
[1746600180718,2.68167,1830.4,1830.3,1.09283]
[1746600181213,2.68167,1830.4,1830.2,3.2078]
[1746600181414,1.09294,1830.2,1830.1,7.28192946]
[1746600181619,1.09294,1830.2,1830.1,8.37489946]
[1746600181925,3.1887,1830.2,1830.1,8.37489946]
[1746600184125,4.28164,1830.2,1830.1,8.37489946]
[1746600184327,3.1887,1830.2,1830.1,8.37489946]
[1746600186230,3.1887,1830.2,1830.1,1.09297]
[1746600187430,4.28164,1830.2,1830.1,1.09297]
[1746600188330,3.1887,1830.2,1830.1,1.09297]
[1746600188832,4.28164,1830.2,1830.1,1.09297]
[1746600191328,2.3944,1830.2,1830.1,1.09297]
[1746600191531,0.8056,1830.2,1830.1,2.73337]
[1746600192233,0.862,1830.4,1830.3,1.09288]
[1746600192437,0.862,1830.4,1830.3,4.30068]
[1746600192831,0.862,1830.4,1830.3,5.99708]
[1746600193741,2.5494,1830.4,1830.3,5.99708]
[1746600194037,3.64222,1830.4,1830.3,2.78928]
[1746600195938,2.5494,1830.4,1830.3,2.78928]
[1746600199934,3.64222,1830.4,1830.3,2.78928]
[1746600200141,1.0929,1830.3,1830.2,1.09292]
[1746600200341,2.7134,1830.3,1830.2,1.09292]
[1746600204234,0.862,1830.4,1830.3,1.09288]
[1746600204636,1.95482,1830.4,1830.3,2.73288]
[1746600204830,1.09288,1830.3,1830.1,3.2078]
[1746600205032,1.09288,1830.3,1830.2,1.09294]
[1746600205942,1.09294,1830.2,1830.1,5.94075]
[1746600207739,1.09294,1830.2,1830.0,0.8707]
[1746600207933,0.8403,1830.1,1830.0,1.96371]
[1746600208138,0.8403,1830.1,1830.0,7.14741]
[1746600211544,1.9333,1830.1,1830.0,7.14741]
[1746600211755,1.9333,1830.1,1830.0,5.1837]
[1746600212146,1.9333,1830.1,1829.9,5.17047]
[1746600212347,1.09306,1830.0,1829.9,6.82777]
[1746600213155,1.09306,1830.0,1829.9,10.42777]
[1746600213947,1.09306,1830.0,1829.9,7.21997]
[1746600214451,1.09306,1830.0,1829.9,5.2573]
[1746600215153,1.09306,1830.0,1829.9,1.6573]
[1746600215550,1.95536,1830.0,1829.9,2.75041]
[1746600216157,1.93331,1830.1,1830.0,1.09306]
[1746600216354,1.09301,1830.1,1830.0,2.82506]
[1746600216555,10.15949,1830.2,1830.1,1.093]
[1746600216951,8.69099,1830.2,1830.1,1.093]
[1746600217153,7.598,1830.2,1830.0,1.732]
[1746600217351,8.691,1830.2,1830.1,1.093]
[1746600217567,1.093,1830.1,1830.0,2.82501]
[1746600218160,2.8323,1830.1,1830.0,6.42501]
[1746600220655,4.194,1830.3,1830.0,5.332]
[1746600220957,6.29512577,1830.4,1830.3,1.09288]
[1746600222859,7.38794577,1830.4,1830.3,1.09288]
[1746600223261,9.14324577,1830.4,1830.3,4.69288]
[1746600223559,9.14324577,1830.4,1830.3,3.6]
[1746600224059,3.66692,1830.4,1830.3,3.6]
[1746600224255,13.03824,1830.4,1830.0,11.58275946]
[1746600224456,1.09299,1830.2,1830.1,1.09299]
[1746600224856,2.84829,1830.2,1830.1,1.09299]
[1746600225766,1.7553,1830.2,1830.1,1.09299]
[1746600226363,5.9483,1830.2,1830.1,1.09299]
[1746600226755,5.9483,1830.2,1830.1,2.71169]
[1746600228364,1.7553,1830.2,1830.1,2.71169]
[1746600230765,2.84824,1830.2,1830.1,2.71169]
[1746600231663,1.7553,1830.2,1830.1,2.71169]
[1746600232762,1.91023,1830.3,1830.2,1.09294]
[1746600233061,1.91023,1830.3,1830.2,3.63704]
[1746600233265,3.55813,1830.3,1830.2,3.63704]
[1746600233963,3.55813,1830.3,1830.2,1.09294]
[1746600237673,1.09294,1830.2,1830.1,2.76074]
[1746600237861,1.6202,1830.2,1829.9,4.30088]
[1746600238061,1.09306,1830.0,1829.9,1.09308]
[1746600238567,3.55426,1830.0,1829.9,1.09308]
[1746600239160,3.55426,1830.0,1829.9,4.69308]
[1746600245170,3.55426,1830.0,1829.9,1.09308]
[1746600245372,2.4612,1830.0,1829.9,1.09308]
[1746600245669,2.4612,1830.0,1829.9,2.76408]
[1746600245870,0.8221,1830.1,1830.0,1.09306]
[1746600246170,0.8221,1830.1,1830.0,6.36406]
[1746600246770,1.9151,1830.1,1830.0,6.36406]
[1746600247171,1.9151,1830.1,1830.0,2.76406]
[1746600248071,1.9151,1830.1,1830.0,6.36406]
[1746600248370,1.9151,1830.1,1830.0,3.6]
[1746600248558,6.8007,1830.1,1830.0,3.6]
[1746600249258,1.09311,1829.9,1829.8,7.3970498]
[1746600249461,1.09317,1829.8,1829.7,7.28192946]
[1746600249672,4.37097,1829.8,1829.7,7.28192946]
[1746600249875,8.56397,1829.8,1829.7,7.28192946]
[1746600252177,1.09329,1829.6,1829.5,3.6266]
[1746600252475,1.09347,1829.3,1829.2,2.04778946]
[1746600252670,12.68727,1829.3,1829.2,2.04778946]
[1746600252862,17.68727,1829.3,1829.2,2.04778946]
[1746600253059,16.5938,1829.3,1829.0,14.59478465]
[1746600253264,4.30139,1829.1,1829.0,14.59478465]
[1746600253664,9.30139,1829.1,1829.0,14.59478465]
[1746600254274,12.90139,1829.1,1829.0,14.59478465]
[1746600255476,7.90139,1829.1,1829.0,14.59478465]
[1746600255870,3.6,1829.1,1829.0,14.59478465]
[1746600256064,10.0886,1829.2,1829.1,1.09359]
[1746600256268,10.0886,1829.2,1829.1,2.84269]
[1746600256773,15.56492577,1829.2,1829.1,2.84269]
[1746600257076,13.86332577,1829.2,1829.1,2.84269]
[1746600261280,8.387,1829.2,1829.1,2.84269]
[1746600266985,23.315,1829.2,1828.3,6.8078]
[1746600267181,1.0939,1828.6,1828.5,1.0939]
[1746600267383,1.09387,1828.7,1828.6,1.09387]
[1746600267580,2.81717,1828.7,1828.6,1.09387]
[1746600267987,2.81717,1828.7,1828.6,2.79857]
[1746600268186,1.7233,1828.7,1828.6,2.79857]
[1746600268488,9.271,1828.8,1828.7,1.09383]
[1746600268785,8.419,1828.8,1828.7,2.71163]
[1746600270092,8.419,1828.8,1828.7,6.31163]
[1746600270490,9.51277,1828.8,1828.7,5.2178]
[1746600271192,9.51277,1828.8,1828.7,6.31163]
[1746600273590,9.51277,1828.8,1828.7,5.2178]
[1746600273792,9.51277,1828.8,1828.7,6.31163]
[1746600277695,9.51277,1828.8,1828.7,5.2178]
[1746600279294,9.51277,1828.8,1828.7,6.31163]
[1746600280694,9.51277,1828.8,1828.7,5.2178]
[1746600281897,9.51277,1828.8,1828.7,6.31163]
[1746600282095,3.2078,1828.9,1828.7,5.2178]
[1746600282302,9.50369,1829.0,1828.9,1.09371]
[1746600282598,1.09371,1828.9,1828.8,2.83523]
[1746600283100,1.09371,1828.9,1828.8,6.43523]
[1746600284801,1.09371,1828.9,1828.8,5.3415]
[1746600285604,2.83921,1828.9,1828.8,3.6]
[1746600285802,3.68541,1828.9,1828.8,3.6]
[1746600286103,1.09377,1828.8,1828.7,2.72302]
[1746600286297,3.71457,1828.8,1828.7,2.72302]
[1746600287202,3.71457,1828.8,1828.7,6.32302]
[1746600290003,1.96907,1828.8,1828.7,6.32302]
[1746600291005,0.8753,1828.8,1828.7,6.32302]
[1746600292699,1.96907,1828.8,1828.7,6.32302]
[1746600292901,1.96907,1828.8,1828.7,5.2292]
[1746600293103,3.55817,1828.8,1828.7,6.32303]
[1746600293705,3.55817,1828.8,1828.7,5.2292]
[1746600294202,3.55817,1828.8,1828.7,6.32303]
[1746600295605,3.55817,1828.8,1828.7,5.2292]
[1746600295797,3.55817,1828.8,1828.7,6.32303]
[1746600295998,3.55817,1828.8,1828.7,5.2292]
[1746600296902,3.55817,1828.8,1828.7,6.32303]
[1746600297401,3.55817,1828.8,1828.7,5.2292]
[1746600297601,3.55817,1828.8,1828.7,6.32303]
[1746600298906,3.55817,1828.8,1828.7,3.6]
[1746600299094,3.55817,1828.8,1828.5,1.96161]
[1746600299095,1.09389,1828.6,1828.5,1.96161]
[1746600299300,1.09389,1828.6,1828.5,3.60831]
[1746600300504,1.09389,1828.6,1828.5,2.5144]
[1746600300703,2.73489,1828.5,1828.1,3.57567]
[1746600300897,1.09412,1828.3,1828.2,1.6467]
[1746600301408,3.63382,1828.3,1828.2,1.6467]
[1746600301602,3.63382,1828.3,1828.2,2.74083]
[1746600302706,3.63382,1828.3,1828.2,1.6467]
[1746600303102,1.09419,1828.1,1828.0,0.7943]
[1746600303401,1.09419,1828.1,1828.0,2.79405]
[1746600303811,2.84429,1828.1,1828.0,2.79405]
[1746600304105,2.84429,1828.1,1828.0,1.6998]
[1746600304608,1.09425,1828.0,1827.9,1.09426]
[1746600304808,1.09431,1827.9,1827.8,6.00195]
[1746600305007,3.67107,1828.0,1827.8,6.00192]
[1746600305308,7.27107,1828.0,1827.9,1.09431]
[1746600307005,14.6118,1828.0,1827.8,4.9076]
[1746600307205,2.79421,1827.9,1827.8,6.00196]
[1746600307406,2.79421,1827.9,1827.8,4.9076]
[1746600307910,2.79421,1827.9,1827.8,6.00197]
[1746600308805,1.6999,1827.9,1827.8,6.00197]
[1746600309410,2.79421,1827.9,1827.8,4.30217]
[1746600309911,2.79421,1827.9,1827.8,3.2078]
[1746600310117,2.79425,1827.9,1827.7,1.97358]
[1746600310309,1.6032,1827.8,1827.7,1.97358]
[1746600310618,1.6032,1827.8,1827.7,3.69658]
[1746600311116,1.6032,1827.8,1827.7,1.09438]
[1746600312314,1.6032,1827.8,1827.7,2.72218]
[1746600313216,1.6032,1827.8,1827.7,1.09438]
[1746600313810,2.69757,1827.8,1827.6,5.93005]
[1746600314003,2.69757,1827.8,1827.6,4.8356]
[1746600314203,2.4577,1827.7,1827.6,5.93009]
[1746600318618,1.6469,1827.7,1827.6,5.93009]
[1746600318816,1.09442,1827.8,1827.7,1.09443]
[1746600319010,8.79215,1827.9,1827.8,1.09437]
[1746600320619,3.4778,1827.9,1827.8,1.09437]
[1746600320820,7.6958,1827.9,1827.8,1.09437]
[1746600321011,7.6958,1827.9,1827.8,1.90667]
[1746600322119,7.6958,1827.9,1827.8,5.50667]
[1746600322717,8.79011,1827.9,1827.8,3.6]
[1746600323015,11.99791,1827.9,1827.8,3.6]
[1746600323222,1.09449,1827.6,1827.5,1.09453]
[1746600323425,4.30229,1827.6,1827.5,1.09453]
[1746600323613,5.31248,1827.7,1827.5,1.09453]
[1746600323820,5.31248,1827.7,1827.6,1.09449]
[1746600324418,4.218,1827.7,1827.6,1.09449]
[1746600324908,4.218,1827.7,1827.6,3.70919]
[1746600325514,5.31243,1827.7,1827.6,2.83129]
[1746600325716,5.31243,1827.7,1827.6,1.09449]
[1746600326115,4.218,1827.7,1827.5,1.09451]
[1746600326314,4.218,1827.7,1827.6,1.09449]
[1746600326616,5.31244,1827.7,1827.6,1.09449]
[1746600326928,1.09449,1827.6,1827.2,5.94463]
[1746600327224,5.31649,1827.6,1827.4,1.09457]
[1746600327411,5.31652,1827.6,1827.3,2.4669]
[1746600327621,5.31652,1827.6,1827.4,1.6703]
[1746600328423,5.31652,1827.6,1827.5,1.09455]
[1746600328918,4.222,1827.6,1827.5,1.09455]
[1746600329127,4.222,1827.6,1827.5,4.69455]
[1746600330332,4.218,1827.7,1827.6,1.09449]
[1746600330524,4.218,1827.7,1827.6,3.66189]
[1746600332630,5.31243,1827.7,1827.6,3.66189]
[1746600335631,6.13823,1827.7,1827.6,3.66189]
[1746600337128,7.85073,1827.7,1827.6,3.66189]
[1746600337435,6.7563,1827.7,1827.6,3.66189]
[1746600338534,7.85073,1827.7,1827.6,3.66189]
[1746600338737,6.7563,1827.7,1827.6,3.66189]
[1746600339839,4.218,1827.7,1827.6,3.66189]
[1746600341440,5.31243,1827.7,1827.6,3.66189]
[1746600341635,4.218,1827.7,1827.6,3.66189]
[1746600345744,2.8099,1827.8,1827.7,1.09443]
[1746600345940,2.8099,1827.8,1827.7,2.82323]
[1746600346140,2.8099,1827.8,1827.7,6.42323]
[1746600346844,1.7155,1827.8,1827.7,6.42323]
[1746600347043,5.0314,1827.9,1827.8,1.09437]
[1746600347243,5.0314,1827.9,1827.8,2.82317]
[1746600347443,4.219,1827.9,1827.8,2.82317]
[1746600347647,4.219,1827.9,1827.8,3.66397]
[1746600348239,7.85066071,1827.9,1827.8,7.26397]
[1746600348744,7.85066071,1827.9,1827.8,6.42317]
[1746600348943,9.56266071,1827.9,1827.8,6.42317]
[1746600349742,10.65697071,1827.9,1827.8,3.6]
[1746600350047,14.86197071,1827.9,1827.8,3.6]
[1746600350254,1.09437,1827.8,1827.7,1.09439]
[1746600350545,4.45167,1827.8,1827.7,1.09439]
[1746600351148,3.3573,1827.8,1827.7,4.69439]
[1746600351647,3.3573,1827.8,1827.7,6.45139]
[1746600352852,4.45167,1827.8,1827.7,6.45139]
[1746600353349,3.3573,1827.8,1827.7,6.45139]
[1746600353651,3.3573,1827.8,1827.7,4.69439]
[1746600356854,4.45167,1827.8,1827.7,4.69439]
[1746600357343,3.3573,1827.8,1827.7,4.69439]
[1746600358350,4.45167,1827.8,1827.7,6.35409]
[1746600360160,4.45167,1827.8,1827.7,4.69439]
[1746600361552,8.08333071,1827.8,1827.7,4.69439]
[1746600365553,11.29113071,1827.8,1827.7,3.6]
[1746600365750,11.29113071,1827.8,1827.7,4.69443]
[1746600366154,11.29113071,1827.8,1827.7,1.09443]
[1746600366657,11.29113071,1827.8,1827.5,1.6729]
[1746600366658,1.09445,1827.7,1827.6,1.09445]
[1746600366957,2.80655,1827.7,1827.6,1.09445]
[1746600368548,6.43821071,1827.7,1827.6,1.09445]
[1746600369255,5.34376071,1827.7,1827.3,3.2078]
[1746600369462,1.09458,1827.5,1827.4,1.09459]
[1746600370057,1.09458,1827.5,1827.4,4.69459]
[1746600370253,2.77108,1827.5,1827.4,4.69459]
[1746600370854,2.77108,1827.5,1827.4,6.30169]
[1746600372355,4.42138,1827.5,1827.4,6.30169]
[1746600374663,4.42138,1827.5,1827.4,5.2071]
[1746600374964,4.42138,1827.5,1827.4,6.30171]
[1746600375164,4.42138,1827.5,1827.4,3.6]
[1746600376163,1.09461,1827.4,1827.3,4.30244]
[1746600376365,2.68161,1827.4,1827.3,4.30244]
[1746600377057,1.587,1827.4,1827.3,7.90244]
[1746600377363,2.68161,1827.4,1827.3,9.58454]
[1746600378865,2.68161,1827.4,1827.3,7.90244]
[1746600379363,2.68161,1827.4,1827.3,7.90247]
[1746600379565,2.68161,1827.4,1827.3,3.6]
[1746600380165,2.68161,1827.4,1827.3,1.09467]
[1746600381164,2.68161,1827.4,1827.3,4.69467]
[1746600384464,4.49976071,1827.5,1827.4,1.09461]
[1746600384664,4.49976071,1827.5,1827.4,2.71021]
[1746600384862,4.49976071,1827.5,1827.4,3.57511]
[1746600385057,4.49976071,1827.5,1827.3,3.6]
[1746600385264,7.30971071,1827.5,1827.4,3.6]
[1746600388773,3.67805,1827.5,1827.4,3.6]
[1746600390273,1.09461,1827.4,1827.3,1.6156]
[1746600390475,12.07461,1827.4,1827.3,2.71027]
[1746600390675,9.49461,1827.4,1827.3,2.71027]
[1746600391066,1.09461,1827.4,1827.3,2.71027]
[1746600391270,1.09461,1827.4,1827.3,6.31027]
[1746600391569,6.7498,1827.5,1827.4,1.09461]
[1746600391775,6.83946071,1827.6,1827.5,1.09455]
[1746600391971,6.83946071,1827.6,1827.5,1.92395]
[1746600392166,6.83946071,1827.6,1827.5,7.15115]
[1746600392769,3.63166071,1827.6,1827.5,7.15115]
[1746600395686,9.34382,1827.8,1827.7,1.09443]
[1746600396073,9.34382,1827.8,1827.7,1.96673]
[1746600396372,9.34382,1827.8,1827.7,5.56673]
[1746600397479,9.34282,1827.8,1827.7,5.56673]
[1746600397680,4.0494,1827.8,1827.7,5.56673]
[1746600398683,5.14377,1827.8,1827.7,4.69443]
[1746600398883,4.0494,1827.8,1827.7,4.69443]
[1746600399088,5.7699,1827.8,1827.7,1.09443]
[1746600400091,5.7699,1827.8,1827.7,4.69443]
[1746600400791,6.86427,1827.8,1827.7,4.69443]
[1746600402389,6.86427,1827.8,1827.7,1.09443]
[1746600402990,5.7699,1827.8,1827.7,1.09443]
[1746600403592,6.86427,1827.8,1827.7,1.09443]
[1746600403790,4.0494,1827.8,1827.7,1.09443]
[1746600404185,5.14377,1827.8,1827.7,4.69443]
[1746600405293,6.76067,1827.8,1827.7,4.69443]
[1746600405495,6.76067,1827.8,1827.7,3.6]
[1746600407285,1.09443,1827.7,1827.6,1.6605]
[1746600407482,3.52383,1827.7,1827.6,1.6605]
[1746600408794,1.09449,1827.6,1827.5,1.09454]
[1746600408983,2.73139,1827.6,1827.5,1.7073]
[1746600409184,2.73139,1827.6,1827.5,5.3073]
[1746600409185,11.12939,1827.6,1827.5,5.3073]
[1746600409492,11.12939,1827.6,1827.5,3.6]
[1746600409794,11.12939,1827.6,1827.5,4.69455]
[1746600409994,11.12939,1827.6,1827.5,3.6]
[1746600410396,11.12939,1827.6,1827.5,4.69455]
[1746600410601,11.12939,1827.6,1827.5,3.6]
[1746600410793,11.12939,1827.6,1827.5,4.69455]
[1746600410993,11.12939,1827.6,1827.5,3.6]
[1746600411194,1.09455,1827.5,1827.4,9.60967]
[1746600411498,3.55015,1827.5,1827.4,9.60967]
[1746600412191,3.55015,1827.5,1827.4,8.5151]
[1746600412791,6.75795,1827.5,1827.4,3.6]
[1746600417301,10.38961071,1827.5,1827.4,3.6]
[1746600418893,7.18181071,1827.5,1827.4,3.6]
[1746600419092,10.38961071,1827.5,1827.4,3.6]
[1746600419894,6.75795,1827.5,1827.4,3.6]
[1746600420200,3.55015,1827.5,1827.4,3.6]
[1746600420401,7.74915,1827.5,1827.4,3.6]
[1746600421207,3.55015,1827.5,1827.4,4.69461]
[1746600421501,3.63166071,1827.6,1827.5,1.09455]
[1746600421701,3.63166071,1827.6,1827.5,4.30235]
[1746600421898,3.63166071,1827.6,1827.5,10.91935]
[1746600422095,13.3929677,1827.8,1827.5,9.8248]
[1746600422096,7.3017677,1827.8,1827.5,9.8248]
[1746600422401,7.3017677,1827.8,1827.7,1.09443]
[1746600422600,9.12720963,1827.9,1827.8,1.09437]
[1746600422601,5.465688,1827.9,1827.8,1.09437]
[1746600422805,5.465688,1827.9,1827.8,6.09437]
[1746600423102,5.465688,1827.9,1827.8,4.69437]
[1746600423403,6.559998,1827.9,1827.8,4.69437]
[1746600423599,6.559998,1827.9,1827.8,6.31137]
[1746600423798,6.559998,1827.9,1827.8,5.217]
[1746600424002,8.207498,1827.9,1827.8,5.217]
[1746600425701,6.559998,1827.9,1827.8,5.217]
[1746600425904,1.09431,1827.9,1827.8,6.31137]
[1746600427799,7.4058,1828.1,1827.9,1.0943]
[1746600427999,8.49999,1828.1,1828.0,1.7205]
[1746600428201,4.30199,1828.1,1828.0,5.3205]
[1746600429899,3.2078,1828.1,1828.0,7.27015]
[1746600430794,8.397,1828.2,1828.1,1.09419]
[1746600430996,4.199,1828.2,1828.1,2.81429]
[1746600431400,2.4006,1828.4,1828.1,1.7201]
[1746600431600,20.0005577,1828.5,1828.2,2.5926]
[1746600431811,14.7085677,1828.5,1828.4,1.09401]
[1746600432206,14.7085677,1828.5,1828.4,6.41411]
[1746600432408,7.4068,1828.5,1828.4,6.41411]
[1746600433510,8.50075,1828.5,1828.4,5.3201]
[1746600433901,10.09155,1828.5,1828.4,5.3201]
[1746600434096,10.09155,1828.5,1828.4,3.6]
[1746600434305,10.88495,1828.5,1828.4,3.6]
[1746600435206,1.09401,1828.4,1828.3,3.6]
[1746600435410,3.49021,1828.4,1828.3,3.6]
[1746600437009,3.49021,1828.4,1828.3,5.2932]
[1746600437509,3.49021,1828.4,1828.3,3.6]
[1746600441004,3.49021,1828.4,1828.3,5.1977]
[1746600441706,1.09401,1828.4,1828.3,6.29177]
[1746600441905,8.50079,1828.5,1828.4,1.09401]
[1746600442102,8.50079,1828.5,1828.4,1.5977]
[1746600442509,5.29299,1828.5,1828.4,1.5977]
[1746600442710,5.29299,1828.5,1828.4,2.69171]
[1746600443111,5.29299,1828.5,1828.4,6.29171]
[1746600443312,5.29299,1828.5,1828.4,5.1977]
[1746600446310,6.94509,1828.5,1828.4,5.1977]
[1746600446509,10.15289,1828.5,1828.4,3.6]
[1746600448716,6.94509,1828.5,1828.4,3.6]
[1746600449218,6.94509,1828.5,1828.4,5.1886]
[1746600451916,6.94509,1828.5,1828.4,6.28261]
[1746600452109,5.29299,1828.5,1828.4,6.28261]
[1746600452309,5.29299,1828.5,1828.4,5.1886]
[1746600452510,7.03759,1828.5,1828.4,5.1886]
[1746600453121,1.09407,1828.4,1828.2,1.96659]
[1746600453420,1.09407,1828.3,1828.2,3.69469]
[1746600454117,1.09407,1828.3,1828.2,7.29469]
[1746600454310,2.73947,1828.3,1828.2,7.29469]
[1746600454819,0.8117,1828.3,1828.2,7.29469]
[1746600456820,1.90577,1828.3,1828.2,7.29469]
[1746600458518,0.8117,1828.3,1828.2,7.29469]
[1746600460822,2.7346,1828.7,1828.2,7.29469]
[1746600460823,3.2078,1829.0,1828.8,1.09376]
[1746600461011,3.2078,1829.0,1828.2,19.6506]
[1746600461012,6.5606,1829.0,1828.6,3.2078]
[1746600461317,5.16597,1829.0,1828.7,3.3129]
[1746600461622,5.16597,1829.0,1828.8,2.75477]
[1746600461831,5.16597,1829.0,1828.9,2.75471]
[1746600462115,5.16597,1829.0,1828.9,6.35471]
[1746600462320,1.78074339,1829.1,1829.0,1.09365]
[1746600462522,0.10934339,1829.1,1829.0,3.58135]
[1746600463121,0.10934339,1829.1,1829.0,7.18135]
[1746600466021,0.10934339,1829.1,1829.0,10.38915]
[1746600479235,1.09333,1829.6,1829.2,2.73384]
[1746600479531,8.54307,1829.7,1829.6,1.09329]
[1746600479930,1.09333,1829.6,1829.5,1.09331]
[1746600480734,3.56693,1829.6,1829.5,1.09331]
[1746600481133,2.4736,1829.6,1829.5,4.69331]
[1746600482836,3.2922,1829.6,1829.5,4.69331]
[1746600484129,7.4498,1829.7,1829.6,1.09329]
[1746600484435,7.4498,1829.7,1829.6,2.67709]
[1746600484636,4.242,1829.7,1829.6,3.50769]
[1746600485933,5.8723,1829.7,1829.6,3.50769]
[1746600487839,6.96553,1829.7,1829.6,3.50769]
[1746600488140,1.6303,1829.7,1829.6,3.50769]
[1746600488734,2.72353,1829.7,1829.6,3.50769]
[1746600488934,1.6765,1829.9,1829.8,1.09317]
[1746600489231,1.09317,1829.8,1829.7,1.0932]
[1746600489735,1.6871,1829.8,1829.7,1.0932]
[1746600489941,2.78027,1829.8,1829.7,1.0932]
[1746600490125,2.78027,1829.8,1829.7,4.6932]
[1746600490435,1.6871,1829.8,1829.7,4.6932]
[1746600493736,1.6871,1829.8,1829.7,3.6]
[1746600493737,2.78027,1829.8,1829.7,3.6]
[1746600494437,2.78027,1829.8,1829.7,4.69323]
[1746600496141,2.78027,1829.8,1829.7,1.09323]
[1746600497843,1.09325,1829.7,1829.6,1.09325]
[1746600498042,2.72925,1829.7,1829.6,1.09325]
[1746600499033,2.72925,1829.7,1829.5,4.6933]
[1746600499233,2.449,1829.6,1829.5,6.4219]
[1746600500346,3.54229,1829.6,1829.5,6.4219]
[1746600502644,2.449,1829.6,1829.5,6.4219]
[1746600504248,1.09322,1829.8,1829.7,1.09323]
[1746600504746,2.79122,1829.8,1829.7,1.09323]
[1746600504941,1.698,1829.8,1829.7,1.09323]
[1746600505135,1.698,1829.8,1829.7,4.69323]
[1746600506549,2.79117,1829.8,1829.7,4.69323]
[1746600506747,2.79117,1829.8,1829.7,3.6]
[1746600507249,1.09323,1829.7,1829.6,1.09326]
[1746600507447,2.67753,1829.7,1829.6,1.09326]
[1746600508447,1.5843,1829.7,1829.6,1.09326]
[1746600508645,1.09338,1829.5,1829.3,6.5233]
[1746600508845,2.3756,1829.4,1829.3,1.09347]
[1746600509052,3.46906,1829.4,1829.3,1.09347]
[1746600509255,2.3756,1829.4,1829.3,1.09347]
[1746600512162,2.3756,1829.4,1829.3,4.69347]
[1746600512362,0.832,1829.6,1829.5,1.09335]
[1746600512665,1.92529,1829.6,1829.5,1.09335]
[1746600513053,1.92529,1829.6,1829.5,6.29625]
[1746600513254,0.832,1829.6,1829.5,6.29625]
[1746600513461,1.92529,1829.6,1829.5,6.29625]
[1746600514465,2.4624,1829.6,1829.5,6.29625]
[1746600516767,3.55569,1829.6,1829.5,6.29625]
[1746600519068,2.4624,1829.6,1829.5,6.29625]
[1746600519270,4.21,1829.7,1829.6,1.09329]
[1746600519468,5.30323,1829.7,1829.6,1.7161]
[1746600519660,7.03933,1829.7,1829.6,1.7161]
[1746600520468,7.03933,1829.7,1829.6,2.80939]
[1746600525674,2.82933,1829.7,1829.6,2.80939]
[1746600525971,10.35537138,1829.9,1829.7,1.09322]
[1746600526171,1.09321,1829.8,1829.7,3.61432]
[1746600526374,2.81291,1829.8,1829.7,3.61432]
[1746600527174,2.81291,1829.8,1829.7,7.21432]
[1746600528077,2.81291,1829.8,1829.7,3.61432]